bitfinex-derivatives/quotes_BTCF0:USTF0_20210703
["timestamp","ask_amount","ask_price","bid_price","bid_amount"]
[1625356001888,1.2546685,34570.0,34569.0,2.69510524]
[1625356002289,1.1956685,34570.0,34569.0,2.69510524]
[1625356002391,0.51241143,34570.0,34569.0,2.69510524]
[1625356003041,0.51241143,34570.0,34569.0,2.75410524]
[1625356003241,0.51241143,34570.0,34569.0,2.69510524]
[1625356003642,0.51226833,34571.0,34569.0,2.75410524]
[1625356004242,0.68296754,34572.0,34569.0,2.75410524]
[1625356004243,0.51217296,34572.0,34570.0,2.15007605]
[1625356004693,0.57117296,34572.0,34571.0,2.15007313]
[1625356005245,0.51217296,34572.0,34571.0,2.20907313]
[1625356006197,0.51217296,34572.0,34571.0,2.21360276]
[1625356006648,1.19470518,34574.0,34571.0,2.27260276]
[1625356007047,1.19470518,34574.0,34572.0,0.06352932]
[1625356007151,1.19470518,34574.0,34572.0,0.12252932]
[1625356007250,0.51199359,34578.0,34573.0,4.62289082]
[1625356007350,0.51199359,34578.0,34573.0,4.68189082]
[1625356008009,1.19434341,34579.0,34577.0,1.15521611]
[1625356008111,1.19434341,34579.0,34577.0,1.46955611]
[1625356008210,1.19434341,34579.0,34577.0,1.41055611]
[1625356008465,1.19434341,34579.0,34578.0,0.48115088]
[1625356008559,1.19434341,34579.0,34578.0,0.9763978]
[1625356008910,1.25334341,34579.0,34578.0,0.9763978]
[1625356009011,1.25334341,34579.0,34578.0,0.48115088]
[1625356009161,1.31234341,34579.0,34578.0,0.48115088]
[1625356009260,1.36934341,34579.0,34578.0,0.48115088]
[1625356009410,4.89438966,34579.0,34578.0,0.48115088]
[1625356009710,4.95138966,34579.0,34578.0,0.48115088]
[1625356010210,4.96557956,34579.0,34578.0,0.48115088]
[1625356011663,6.50071011,34579.0,34578.0,0.48115088]
[1625356012513,4.96557956,34579.0,34578.0,0.48115088]
[1625356013364,6.50070226,34579.0,34578.0,0.48115088]
[1625356014172,6.79658226,34579.0,34578.0,0.48115088]
[1625356022132,6.73758226,34579.0,34578.0,0.48115088]
[1625356022232,6.38270226,34579.0,34578.0,0.48115088]
[1625356022383,6.38470226,34579.0,34578.0,0.48115088]
[1625356022485,4.83538966,34579.0,34578.0,0.48115088]
[1625356022635,4.77638966,34579.0,34578.0,0.75806088]
[1625356022884,3.41182498,34579.0,34578.0,0.75806088]
[1625356023434,2.21780956,34579.0,34578.0,0.75806088]
[1625356023533,2.21780956,34579.0,34578.0,0.81706088]
[1625356023836,2.21780956,34579.0,34578.0,0.82159228]
[1625356024036,0.5116412,34580.0,34578.0,1.98641524]
[1625356024338,1.1937709,34581.0,34579.0,1.16891419]
[1625356024438,1.1937709,34581.0,34579.0,1.22791419]
[1625356024538,1.1937709,34581.0,34580.0,0.48115088]
[1625356024739,1.1937709,34581.0,34580.0,0.54015088]
[1625356024888,0.51163946,34581.0,34580.0,1.03912704]
[1625356025189,0.51163946,34581.0,34580.0,1.04365791]
[1625356025439,0.51163946,34581.0,34580.0,1.03912704]
[1625356025539,0.51142919,34583.0,34580.0,2.69769832]
[1625356025688,0.51142919,34583.0,34580.0,3.20222897]
[1625356025941,0.51142919,34583.0,34581.0,0.00453018]
[1625356026140,1.19310754,34587.0,34581.0,0.00453018]
[1625356026141,0.51137233,34587.0,34582.0,2.15217281]
[1625356026288,0.51137233,34587.0,34583.0,0.5]
[1625356026391,0.51137233,34587.0,34583.0,0.618]
[1625356026489,0.51137233,34587.0,34583.0,0.62252954]
[1625356026591,0.51137233,34587.0,34586.0,0.48115088]
[1625356026689,0.51137233,34587.0,34586.0,0.84458088]
[1625356026889,0.51137233,34587.0,34586.0,0.90358088]
[1625356027038,0.51137233,34587.0,34586.0,0.90811033]
[1625356027139,0.68177297,34588.0,34586.0,0.90811033]
[1625356027140,0.51131535,34590.0,34586.0,3.05939924]
[1625356027540,0.51131535,34590.0,34586.0,3.05486979]
[1625356027940,0.51083609,34592.0,34588.0,0.49581391]
[1625356028138,0.51083609,34592.0,34588.0,0.55481391]
[1625356028340,0.51083609,34592.0,34588.0,0.61381391]
[1625356028592,0.51083609,34592.0,34591.0,0.48115088]
[1625356028692,0.51083609,34592.0,34591.0,0.54015088]
[1625356028794,1.19187075,34593.0,34591.0,0.54015088]
[1625356029447,1.19187075,34593.0,34591.0,0.48115088]
[1625356029596,1.19187075,34593.0,34591.0,0.54015088]
[1625356029795,1.19187075,34593.0,34591.0,0.59915088]
[1625356029896,0.5108127,34593.0,34591.0,0.59915088]
[1625356029997,0.5108127,34593.0,34591.0,0.54015088]
[1625356030549,0.5108127,34593.0,34591.0,0.59915088]
[1625356030652,0.0104127,34593.0,34592.0,0.24057544]
[1625356030749,0.68105089,34594.0,34592.0,0.85857544]
[1625356030851,1.19183308,34595.0,34592.0,0.85857544]
[1625356031198,1.19183308,34595.0,34592.0,0.35857544]
[1625356031451,1.19183308,34595.0,34592.0,0.29957544]
[1625356031549,1.19183308,34595.0,34592.0,0.35857544]
[1625356032155,0.68009197,34601.0,34593.0,0.65894957]
[1625356032351,0.68009197,34601.0,34593.0,0.77694957]
[1625356032601,0.68009197,34601.0,34600.0,0.72172632]
[1625356032701,0.68009197,34601.0,34600.0,1.08534632]
[1625356032801,0.68010144,34602.0,34600.0,1.08534632]
[1625356033454,0.68010144,34602.0,34600.0,1.02634632]
[1625356033651,0.6800998,34601.0,34600.0,1.02634632]
[1625356033752,0.6800998,34601.0,34600.0,1.08534632]
[1625356034304,0.67952302,34603.0,34600.0,1.08534632]
[1625356034603,0.67952302,34603.0,34601.0,0.24057544]
[1625356034753,0.67952302,34603.0,34601.0,0.29957544]
[1625356035404,0.67896798,34604.0,34601.0,0.29957544]
[1625356035504,0.73796798,34604.0,34601.0,0.29957544]
[1625356036056,0.059,34604.0,34601.0,0.29957544]
[1625356038513,0.059,34604.0,34601.0,0.24057544]
[1625356038612,0.118,34604.0,34601.0,0.24057544]
[1625356038713,0.35719,34603.0,34601.0,0.24057544]
[1625356038813,0.47519,34603.0,34601.0,0.24057544]
[1625356039618,1.69618224,34602.0,34601.0,0.24057544]
[1625356039716,1.81218224,34602.0,34601.0,0.24057544]
[1625356039867,1.87118224,34602.0,34601.0,0.24057544]
[1625356040221,1.81218224,34602.0,34601.0,0.24057544]
[1625356040572,1.75518224,34602.0,34601.0,0.24057544]
[1625356040870,1.81418224,34602.0,34601.0,0.24057544]
[1625356041121,0.79650681,34602.0,34601.0,0.24057544]
[1625356041971,0.118,34602.0,34601.0,0.24057544]
[1625356042072,0.175,34602.0,34601.0,0.24057544]
[1625356042474,0.79615347,34602.0,34601.0,0.24057544]
[1625356043123,0.85315347,34602.0,34601.0,0.24057544]
[1625356043422,0.79415347,34602.0,34601.0,0.24057544]
[1625356043523,0.85315347,34602.0,34601.0,0.24057544]
[1625356043874,0.175,34602.0,34601.0,0.24057544]
[1625356044075,0.116,34602.0,34601.0,0.24057544]
[1625356044929,0.79387881,34602.0,34601.0,0.24057544]
[1625356045229,0.85287881,34602.0,34601.0,0.24057544]
[1625356048734,1.09345425,34602.0,34601.0,0.24057544]
[1625356049185,0.41557544,34602.0,34601.0,0.24057544]
[1625356049739,1.10726853,34602.0,34601.0,0.24057544]
[1625356050189,2.12347171,34602.0,34601.0,0.24057544]
[1625356052797,0.42975233,34602.0,34601.0,0.24057544]
[1625356053750,2.12392948,34602.0,34601.0,0.24057544]
[1625356054500,3.31029462,34602.0,34601.0,0.24057544]
[1625356055304,3.34457353,34602.0,34601.0,0.24057544]
[1625356055706,4.70045815,34602.0,34601.0,0.24057544]
[1625356059166,6.22717749,34602.0,34601.0,0.24057544]
[1625356061119,4.70045815,34602.0,34601.0,0.24057544]
[1625356061371,4.66617924,34602.0,34601.0,0.24057544]
[1625356061969,4.88473924,34602.0,34601.0,0.24057544]
[1625356067681,4.91901905,34602.0,34601.0,0.24057544]
[1625356068237,4.88473924,34602.0,34601.0,0.24057544]
[1625356070136,4.91901765,34602.0,34601.0,0.24057544]
[1625356071390,4.88473924,34602.0,34601.0,0.24057544]
[1625356072993,4.91901774,34602.0,34601.0,0.24057544]
[1625356074147,4.88473924,34602.0,34601.0,0.24057544]
[1625356074499,4.82573924,34602.0,34601.0,0.24057544]
[1625356075048,3.46985462,34602.0,34601.0,0.24057544]
[1625356076253,4.89041094,34602.0,34601.0,0.24057544]
[1625356078154,6.42402702,34602.0,34601.0,0.24057544]
[1625356078654,6.458305,34602.0,34601.0,0.24057544]
[1625356084370,8.16672633,34602.0,34601.0,0.24057544]
[1625356085320,8.16672633,34602.0,34593.0,0.24057544]
[1625356085670,0.04844393,34601.0,34593.0,0.24057544]
[1625356085770,0.16644393,34601.0,34593.0,0.24057544]
[1625356085920,0.175,34600.0,34593.0,0.24057544]
[1625356086072,4.27419151,34594.0,34593.0,0.24057544]
[1625356086170,4.65242151,34594.0,34593.0,0.24057544]
[1625356086371,4.59342151,34594.0,34593.0,0.24057544]
[1625356086473,4.66658593,34594.0,34593.0,0.24057544]
[1625356087022,4.90716137,34594.0,34593.0,0.24057544]
[1625356087923,6.44578955,34594.0,34593.0,0.24057544]
[1625356089028,6.68636499,34594.0,34593.0,0.24057544]
[1625356094446,6.62936499,34594.0,34593.0,0.24057544]
[1625356096649,6.57036499,34594.0,34593.0,0.24057544]
[1625356097002,5.03173681,34594.0,34593.0,0.24057544]
[1625356097100,5.03173681,34594.0,34593.0,0.24511374]
[1625356097200,4.82850681,34594.0,34593.0,0.24511374]
[1625356097450,4.82850681,34594.0,34593.0,1.90482636]
[1625356097901,4.82850681,34594.0,34593.0,1.99232636]
[1625356098052,4.76950681,34594.0,34593.0,1.90482636]
[1625356098452,4.82850681,34594.0,34593.0,1.90482636]
[1625356098953,4.76950681,34594.0,34593.0,1.90482636]
[1625356099054,4.52893137,34594.0,34593.0,1.90482636]
[1625356099806,4.51476695,34594.0,34593.0,1.90482636]
[1625356100109,4.51476695,34594.0,34593.0,1.96382636]
[1625356100256,3.14707353,34594.0,34593.0,3.06646377]
[1625356100656,3.14707353,34594.0,34593.0,3.12546377]
[1625356100758,3.14707353,34594.0,34593.0,3.06646377]
[1625356100857,3.14707353,34594.0,34593.0,3.12546377]
[1625356100956,3.14707353,34594.0,34593.0,3.06646377]
[1625356101459,3.20607353,34594.0,34593.0,3.06646377]
[1625356101759,3.20607353,34594.0,34593.0,3.12546377]
[1625356102610,3.20607353,34594.0,34593.0,3.06646377]
[1625356102710,3.20607353,34594.0,34593.0,3.12546377]
[1625356102860,3.20607353,34594.0,34593.0,4.45260358]
[1625356102861,1.95032042,34594.0,34593.0,4.45260358]
[1625356102961,1.70974498,34594.0,34593.0,4.45260358]
[1625356103062,1.70974498,34594.0,34593.0,4.69317902]
[1625356103514,0.68393218,34594.0,34593.0,4.69317902]
[1625356104015,0.34215764,34594.0,34593.0,6.18439857]
[1625356105118,0.34215764,34594.0,34593.0,4.69317902]
[1625356106520,0.34206709,34595.0,34593.0,6.18375871]
[1625356106872,0.34206709,34595.0,34594.0,0.00453702]
[1625356106971,0.34206709,34595.0,34594.0,0.06353702]
[1625356107074,0.34206709,34595.0,34594.0,4.20259172]
[1625356110428,0.34206709,34595.0,34594.0,4.41057172]
[1625356110983,0.34206709,34595.0,34594.0,4.91057172]
[1625356111128,0.34206709,34595.0,34594.0,4.96957172]
[1625356111530,0.32886709,34595.0,34594.0,4.96957172]
[1625356111630,0.34175649,34599.0,34594.0,6.45953505]
[1625356111729,0.34175649,34599.0,34594.0,6.95953505]
[1625356111880,0.34175649,34599.0,34595.0,0.00453387]
[1625356111982,0.34175649,34599.0,34596.0,0.5]
[1625356112129,0.34175649,34599.0,34596.0,0.559]
[1625356112231,0.68326069,34602.0,34598.0,4.13746145]
[1625356112485,0.68326069,34602.0,34598.0,4.19646145]
[1625356112683,0.68326069,34602.0,34599.0,0.00453349]
[1625356112783,0.68326069,34602.0,34599.0,0.06353349]
[1625356112934,0.68282602,34604.0,34601.0,4.13283856]
[1625356113033,0.68282602,34604.0,34601.0,4.34196856]
[1625356113132,0.68282602,34604.0,34603.0,0.48115088]
[1625356113682,0.68282602,34604.0,34603.0,3.29176533]
[1625356115439,0.68245848,34605.0,34603.0,2.1344535]
[1625356116142,0.68245848,34605.0,34604.0,1.6540806]
[1625356116692,1.70600537,34605.0,34604.0,0.66163224]
[1625356117144,1.70600537,34605.0,34604.0,0.90220768]
[1625356117344,0.68245848,34605.0,34604.0,0.90220768]
[1625356117945,1.0232121,34606.0,34604.0,1.89443423]
[1625356117946,0.68219657,34606.0,34604.0,1.89443423]
[1625356118044,0.74119657,34606.0,34604.0,1.89443423]
[1625356118596,0.74119657,34606.0,34605.0,0.66135107]
[1625356119297,0.68219657,34606.0,34605.0,0.66135107]
[1625356119599,0.68190594,34607.0,34605.0,0.66135107]
[1625356120201,0.6818898,34608.0,34606.0,0.66098494]
[1625356121053,0.51145411,34607.0,34606.0,0.66098494]
[1625356121152,0.51145411,34607.0,34606.0,0.90156038]
[1625356121502,1.19316297,34608.0,34606.0,1.39717205]
[1625356122156,1.19316297,34608.0,34606.0,0.73618711]
[1625356122860,0.9884,34611.0,34606.0,0.24057544]
[1625356122956,1.0474,34611.0,34606.0,0.24057544]
[1625356123206,1.0474,34611.0,34610.0,0.24057544]
[1625356124308,3.26182909,34611.0,34610.0,0.24057544]
[1625356126164,3.26182909,34611.0,34610.0,0.32777544]
[1625356128316,2.2398504,34611.0,34610.0,0.32777544]
[1625356129975,2.2398504,34611.0,34610.0,0.29957544]
[1625356130075,0.5581745,34611.0,34610.0,0.57651544]
[1625356130174,0.5509745,34611.0,34610.0,0.57651544]
[1625356130528,0.5509745,34611.0,34610.0,0.58104494]
[1625356130774,0.0399,34611.0,34610.0,0.58104494]
[1625356130975,0.0001,34611.0,34610.0,0.58104494]
[1625356131076,0.0001,34611.0,34610.0,1.08104494]
[1625356131227,1.59047659,34620.0,34619.0,0.72172632]
[1625356131328,1.53147659,34620.0,34619.0,0.92552632]
[1625356131429,1.19102662,34620.0,34619.0,0.92552632]
[1625356132128,0.17027583,34620.0,34619.0,0.92552632]
[1625356132630,0.17027583,34620.0,34619.0,0.98452632]
[1625356132730,1.02080445,34623.0,34619.0,0.98452632]
[1625356132731,0.17026113,34623.0,34619.0,2.13558998]
[1625356133136,0.86073858,34624.0,34620.0,1.0]
[1625356133231,0.80571632,34626.0,34623.0,0.24057544]
[1625356133331,0.80571632,34626.0,34624.0,0.5]
[1625356133490,0.17005235,34626.0,34624.0,0.618]
[1625356133582,0.17005235,34626.0,34624.0,0.62253239]
[1625356133782,0.17005235,34626.0,34624.0,0.618]
[1625356134183,1.07506937,34627.0,34624.0,0.618]
[1625356134385,1.07506937,34627.0,34625.0,0.00453161]
[1625356134484,1.0166,34642.0,34625.0,0.00453161]
[1625356134485,1.1891261,34639.0,34626.0,0.5]
[1625356134634,1.2481261,34639.0,34626.0,0.84031]
[1625356134903,1.2481261,34639.0,34626.0,0.34031]
[1625356134992,1.2481261,34639.0,34627.0,1.14577597]
[1625356134993,0.059,34639.0,34627.0,1.14577597]
[1625356135085,0.118,34639.0,34627.0,1.20477597]
[1625356135288,0.118,34639.0,34638.0,0.24057544]
[1625356135387,0.116,34639.0,34638.0,0.24057544]
[1625356135487,0.175,34639.0,34638.0,0.24057544]
[1625356136037,0.118,34639.0,34638.0,0.24057544]
[1625356137190,0.175,34639.0,34638.0,0.24057544]
[1625356137289,0.41557544,34639.0,34638.0,0.24057544]
[1625356137491,0.35657544,34639.0,34638.0,0.24057544]
[1625356137640,0.29957544,34639.0,34638.0,0.24057544]
[1625356137739,0.059,34639.0,34638.0,0.24057544]
[1625356139244,0.29957544,34639.0,34638.0,0.24057544]
[1625356140247,0.059,34639.0,34638.0,0.24057544]
[1625356140446,0.26593,34639.0,34638.0,0.24057544]
[1625356140697,0.32293,34639.0,34638.0,0.24057544]
[1625356141747,0.38193,34639.0,34638.0,0.24057544]
[1625356142104,0.38193,34639.0,34630.0,0.24057544]
[1625356143300,0.24057544,34631.0,34630.0,0.24057544]
[1625356143400,0.69884544,34631.0,34630.0,0.24057544]
[1625356143599,0.63984544,34631.0,34630.0,0.24057544]
[1625356144102,0.69884544,34631.0,34630.0,0.24057544]
[1625356144400,0.63984544,34631.0,34630.0,0.24057544]
[1625356144600,0.69884544,34631.0,34630.0,0.24057544]
[1625356145504,0.63984544,34631.0,34630.0,0.24057544]
[1625356146010,0.58284544,34631.0,34630.0,0.24057544]
[1625356146103,0.34227,34631.0,34630.0,0.24057544]
[1625356147155,0.39927,34631.0,34630.0,0.24057544]
[1625356147307,0.34227,34631.0,34630.0,0.24057544]
[1625356147406,0.39927,34631.0,34630.0,0.24057544]
[1625356148110,0.28327,34631.0,34630.0,0.24057544]
[1625356148460,0.24057544,34634.0,34630.0,0.24057544]
[1625356148713,0.29957544,34634.0,34630.0,0.24057544]
[1625356149312,0.29957544,34634.0,34633.0,0.24057544]
[1625356149512,0.35657544,34634.0,34633.0,0.24057544]
[1625356151165,0.41557544,34634.0,34633.0,0.24057544]
[1625356159635,0.42972414,34634.0,34633.0,0.24057544]
[1625356160291,0.51447129,34634.0,34633.0,0.24057544]
[1625356160840,0.42972414,34634.0,34633.0,0.24057544]
[1625356164147,1.44584704,34634.0,34633.0,0.24057544]
[1625356164497,0.42972414,34634.0,34633.0,0.24057544]
[1625356164999,1.44613098,34634.0,34633.0,0.24057544]
[1625356169609,2.63332892,34634.0,34633.0,0.24057544]
[1625356169860,2.63332892,34634.0,34630.0,0.24057544]
[1625356170363,0.0141604,34633.0,34630.0,0.24057544]
[1625356170462,0.1321604,34633.0,34630.0,0.24057544]
[1625356170563,0.057,34632.0,34630.0,0.24057544]
[1625356170662,0.4563,34632.0,34630.0,0.24057544]
[1625356170812,0.01416042,34631.0,34630.0,0.24057544]
[1625356170914,0.07316042,34631.0,34630.0,0.24057544]
[1625356171015,0.13216042,34631.0,34630.0,0.24057544]
[1625356171114,0.18916042,34631.0,34630.0,0.24057544]
[1625356171414,0.42973586,34631.0,34630.0,0.24057544]
[1625356171516,1.44796559,34631.0,34630.0,0.24057544]
[1625356172064,1.44796559,34631.0,34626.0,0.24057544]
[1625356172168,1.48221686,34631.0,34626.0,0.24057544]
[1625356172466,0.04840409,34630.0,34626.0,0.24057544]
[1625356172668,0.16640409,34630.0,34626.0,0.24057544]
[1625356172770,2.20643222,34627.0,34626.0,0.24057544]
[1625356172869,2.26343222,34627.0,34626.0,0.24057544]
[1625356172971,2.38143222,34627.0,34622.0,0.24057544]
[1625356173270,0.01415279,34626.0,34622.0,0.24057544]
[1625356173421,0.48115088,34623.0,34622.0,0.24057544]
[1625356173520,0.53815088,34623.0,34622.0,0.24057544]
[1625356173620,0.88309088,34623.0,34622.0,0.24057544]
[1625356173822,0.83824355,34623.0,34622.0,0.24057544]
[1625356173922,0.89724355,34623.0,34622.0,0.24057544]
[1625356174928,0.98232182,34623.0,34622.0,0.24057544]
[1625356175679,0.89724355,34623.0,34622.0,0.24057544]
[1625356177484,1.91706281,34623.0,34622.0,0.24057544]
[1625356180835,1.85806281,34623.0,34622.0,0.24057544]
[1625356181185,0.83824355,34623.0,34622.0,0.24057544]
[1625356181285,0.61130355,34623.0,34622.0,0.24057544]
[1625356181435,0.67030355,34623.0,34622.0,0.24057544]
[1625356181686,0.90427355,34623.0,34622.0,0.24057544]
[1625356182687,1.92513286,34623.0,34622.0,0.24057544]
[1625356183188,3.11610923,34623.0,34622.0,0.24057544]
[1625356188503,4.47932718,34623.0,34622.0,0.24057544]
[1625356190056,0.61130355,34623.0,34622.0,0.24057544]
[1625356190157,0.55430355,34623.0,34622.0,0.24057544]
[1625356190257,0.31372811,34623.0,34622.0,0.24057544]
[1625356190762,2.53032134,34623.0,34622.0,0.24057544]
[1625356190959,2.51616867,34623.0,34622.0,0.24057544]
[1625356191458,2.51616867,34623.0,34622.0,0.32319988]
[1625356191559,2.58660694,34623.0,34622.0,0.56377532]
[1625356192711,2.58660694,34623.0,34622.0,0.48115088]
[1625356193612,3.26866379,34623.0,34622.0,0.48115088]
[1625356195267,3.26866379,34623.0,34622.0,0.56382996]
[1625356198476,3.26866379,34623.0,34622.0,0.56836257]
[1625356198679,3.26866379,34623.0,34622.0,0.48568349]
[1625356199681,3.32766379,34623.0,34622.0,1.14756143]
[1625356200232,2.1341267,34623.0,34622.0,2.13991306]
[1625356200331,1.8372567,34623.0,34622.0,2.13991306]
[1625356202788,3.03184745,34623.0,34622.0,1.14756143]
[1625356203237,1.8372567,34623.0,34622.0,2.13941451]
[1625356204639,2.0634967,34623.0,34622.0,2.13941451]
[1625356205640,2.0044967,34623.0,34622.0,2.13941451]
[1625356205991,1.9454967,34623.0,34622.0,2.13941451]
[1625356206090,1.7192567,34623.0,34622.0,2.13941451]
[1625356206341,1.7192567,34623.0,34622.0,2.47197451]
[1625356206442,0.18227615,34624.0,34622.0,4.94324677]
[1625356206542,1.02392892,34625.0,34623.0,0.5]
[1625356206644,1.02392892,34625.0,34623.0,1.059]
[1625356206792,1.02392892,34625.0,34623.0,1.1225316]
[1625356206991,1.02392892,34625.0,34624.0,0.00453148]
[1625356207142,1.02392892,34625.0,34624.0,0.06353148]
[1625356207294,0.08547381,34628.0,34624.0,3.51745632]
[1625356207391,0.08547381,34628.0,34624.0,3.57645632]
[1625356207643,0.08547381,34628.0,34627.0,0.48115088]
[1625356207745,0.08547381,34628.0,34627.0,0.54015088]
[1625356207994,1.1944155,34633.0,34627.0,0.54015088]
[1625356207995,0.08545817,34629.0,34627.0,3.98893348]
[1625356208095,0.08545817,34629.0,34627.0,3.99346451]
[1625356208296,0.08545817,34629.0,34628.0,0.00453087]
[1625356208398,0.08545817,34629.0,34628.0,0.06353087]
[1625356208546,0.08545766,34630.0,34628.0,3.51131951]
[1625356208646,0.08545766,34630.0,34628.0,3.45231951]
[1625356208846,0.08545766,34630.0,34629.0,0.00453094]
[1625356208947,0.085456,34631.0,34629.0,3.45277344]
[1625356209398,0.085456,34631.0,34629.0,3.4482425]
[1625356209499,1.0235063,34633.0,34630.0,2.13516362]
[1625356209600,1.0825063,34633.0,34632.0,0.48115088]
[1625356210854,2.27661485,34633.0,34632.0,0.48115088]
[1625356211304,1.0235063,34633.0,34632.0,1.46682827]
[1625356211908,1.02329961,34634.0,34632.0,1.46682827]
[1625356212104,1.08229961,34634.0,34632.0,1.46682827]
[1625356212254,0.059,34634.0,34633.0,0.98439818]
[1625356213707,0.059,34634.0,34633.0,1.22497362]
[1625356213808,0.059,34634.0,34633.0,0.24057544]
[1625356214408,0.059,34634.0,34633.0,1.22471482]
[1625356214859,0.059,34634.0,34633.0,0.24057544]
[1625356216310,0.116,34634.0,34633.0,0.24057544]
[1625356217061,2.3317869,34634.0,34633.0,0.24057544]
[1625356217712,2.5397869,34634.0,34633.0,0.24057544]
[1625356218412,2.5967869,34634.0,34633.0,0.24057544]
[1625356218864,2.6557869,34634.0,34633.0,0.24057544]
[1625356219465,4.01922597,34634.0,34633.0,0.24057544]
[1625356220665,3.96222597,34634.0,34633.0,0.24057544]
[1625356220966,4.01922597,34634.0,34633.0,0.24057544]
[1625356222468,4.03338133,34634.0,34633.0,0.24057544]
[1625356224119,4.03338133,34634.0,34632.0,0.24057544]
[1625356224369,4.01922597,34634.0,34632.0,0.24057544]
[1625356224621,0.0141555,34633.0,34632.0,0.24057544]
[1625356224720,0.0731555,34633.0,34632.0,0.24057544]
[1625356224870,0.1321555,34633.0,34632.0,0.24057544]
[1625356224971,4.27943337,34633.0,34632.0,0.24057544]
[1625356225674,4.52000881,34633.0,34632.0,0.24057544]
[1625356229130,4.46300881,34633.0,34632.0,0.24057544]
[1625356229680,4.52000881,34633.0,34632.0,0.24057544]
[1625356229930,3.15663965,34633.0,34632.0,0.24057544]
[1625356230179,3.09963965,34633.0,34632.0,0.24057544]
[1625356230580,3.04063965,34633.0,34632.0,0.24057544]
[1625356231133,3.30756965,34633.0,34632.0,0.24057544]
[1625356231834,3.36456965,34633.0,34632.0,0.24057544]
[1625356231933,3.30756965,34633.0,34632.0,0.24057544]
[1625356232788,3.36456965,34633.0,34632.0,0.24057544]
[1625356232938,3.30756965,34633.0,34632.0,0.24057544]
[1625356233588,3.06699421,34633.0,34632.0,0.24057544]
[1625356233842,3.12399421,34633.0,34632.0,0.24057544]
[1625356234241,3.06699421,34633.0,34632.0,0.24057544]
[1625356234941,1.8740249,34633.0,34632.0,0.24057544]
[1625356235944,3.12573494,34633.0,34632.0,0.24057544]
[1625356236293,3.18273494,34633.0,34632.0,0.24057544]
[1625356236494,3.12373494,34633.0,34632.0,0.24057544]
[1625356236694,3.06673494,34633.0,34632.0,0.24057544]
[1625356236946,1.8740249,34633.0,34632.0,0.32296147]
[1625356237396,1.8740249,34633.0,34632.0,0.24057544]
[1625356238147,3.06681401,34633.0,34632.0,0.24057544]
[1625356238955,3.12581401,34633.0,34632.0,0.24057544]
[1625356239104,1.9330249,34633.0,34632.0,0.32297205]
[1625356239203,1.8740249,34633.0,34632.0,0.32297205]
[1625356239303,1.9330249,34633.0,34632.0,0.32297205]
[1625356239404,1.9900249,34633.0,34632.0,0.32297205]
[1625356239657,3.18291571,34633.0,34632.0,0.24057544]
[1625356239753,3.12391571,34633.0,34632.0,0.24057544]
[1625356239854,3.18291571,34633.0,34632.0,0.24057544]
[1625356240305,4.54625367,34633.0,34632.0,0.24057544]
[1625356241807,0.4560855,34633.0,34632.0,0.24057544]
[1625356242710,0.3990855,34633.0,34632.0,0.24057544]
[1625356243061,0.3400855,34633.0,34632.0,0.24511158]
[1625356244163,0.3990855,34633.0,34632.0,0.24511158]
[1625356244664,0.4560855,34633.0,34632.0,0.24511158]
[1625356244965,0.3990855,34633.0,34632.0,0.24511158]
[1625356245363,0.3400855,34633.0,34632.0,0.24511158]
[1625356246266,1.87461209,34633.0,34632.0,0.74018812]
[1625356246364,1.60768209,34633.0,34632.0,0.74018812]
[1625356246566,0.58472119,34633.0,34632.0,1.72992324]
[1625356247068,0.52572119,34633.0,34632.0,1.72992324]
[1625356247266,0.52772119,34633.0,34632.0,1.72992324]
[1625356248016,0.51356569,34633.0,34632.0,1.72992324]
[1625356249572,0.85468877,34633.0,34632.0,1.72992324]
[1625356249773,0.70480569,34633.0,34632.0,1.72992324]
[1625356249873,0.76380569,34633.0,34632.0,1.72992324]
[1625356250025,1.10492879,34633.0,34632.0,2.88488236]
[1625356250374,0.70480569,34633.0,34632.0,1.72992324]
[1625356250475,0.92189887,34635.0,34632.0,2.78892324]
[1625356250591,0.08539598,34637.0,34633.0,0.0874]
[1625356250779,0.08539598,34637.0,34634.0,0.5]
[1625356250884,1.0004,34638.0,34636.0,2.46898269]
[1625356250979,1.0004,34638.0,34637.0,0.5]
[1625356251081,1.0004,34638.0,34637.0,3.02742604]
[1625356251180,1.0004,34638.0,34637.0,2.53195761]
[1625356251880,1.0004,34638.0,34637.0,2.95410849]
[1625356252232,1.34150022,34638.0,34637.0,1.6376146]
[1625356252531,1.34150022,34638.0,34637.0,1.63308303]
[1625356252632,1.39850022,34638.0,34637.0,1.63308303]
[1625356252732,1.34150022,34638.0,34637.0,0.48115088]
[1625356253181,1.0004,34638.0,34637.0,0.48115088]
[1625356253281,1.1184,34638.0,34637.0,0.48115088]
[1625356253483,1.1754,34638.0,34637.0,0.48115088]
[1625356253585,3.74683862,34638.0,34637.0,0.48115088]
[1625356253885,3.98741406,34638.0,34637.0,0.48115088]
[1625356255040,5.52204946,34638.0,34637.0,0.48115088]
[1625356255241,5.46304946,34638.0,34637.0,0.48115088]
[1625356255390,5.52204946,34638.0,34637.0,0.48115088]
[1625356255489,5.46504946,34638.0,34637.0,0.48115088]
[1625356255592,5.40604946,34638.0,34637.0,0.48115088]
[1625356255792,5.39189909,34638.0,34637.0,0.48115088]
[1625356255903,2.49338799,34638.0,34637.0,0.48115088]
[1625356256093,2.64679799,34638.0,34637.0,0.48115088]
[1625356256194,2.70379799,34638.0,34637.0,0.48115088]
[1625356256294,2.76279799,34638.0,34637.0,0.48115088]
[1625356256846,2.82179799,34638.0,34637.0,0.48115088]
[1625356257095,2.83594815,34638.0,34637.0,0.48115088]
[1625356257244,1.6425356,34638.0,34637.0,0.48115088]
[1625356257795,1.6425356,34638.0,34634.0,1.15706277]
[1625356257896,0.24057544,34635.0,34634.0,1.15706277]
[1625356257997,0.41557544,34635.0,34634.0,1.15706277]
[1625356258098,0.41557544,34635.0,34632.0,0.24057544]
[1625356258196,0.42972692,34635.0,34632.0,0.24057544]
[1625356258448,0.01415157,34634.0,34632.0,0.24057544]
[1625356258548,0.13215157,34634.0,34632.0,0.24057544]
[1625356258647,0.057,34633.0,34632.0,0.24057544]
[1625356258750,2.73415899,34633.0,34632.0,0.32345656]
[1625356258950,2.748311,34633.0,34632.0,0.32345656]
[1625356259400,2.748311,34633.0,34632.0,0.24057544]
[1625356260252,2.689311,34633.0,34632.0,0.24057544]
[1625356260455,2.689311,34633.0,34632.0,0.57209642]
[1625356261406,2.748311,34633.0,34632.0,0.57209642]
[1625356261707,1.38343758,34633.0,34632.0,0.24057544]
[1625356262258,2.74889209,34633.0,34632.0,0.57177512]
[1625356263960,2.98946753,34633.0,34632.0,0.24057544]
[1625356264564,4.52620898,34633.0,34632.0,0.24057544]
[1625356266670,5.20935511,34633.0,34632.0,0.24057544]
[1625356267120,5.20935511,34633.0,34628.0,0.08306274]
[1625356267368,5.20935511,34633.0,34627.0,0.08309422]
[1625356267669,0.01415368,34632.0,34627.0,0.08309422]
[1625356267769,0.13215368,34632.0,34627.0,0.08309422]
[1625356267871,0.057,34631.0,34627.0,0.08309422]